fUST/lending_fUST_20250105
["ID","MTS","AMOUNT","RATE_DAILY","PERIOD"]
[347659481,1736029843354,-500.0,0.00019452,3]
[347659482,1736029843365,-2775.63,0.00019452,3]
[347659483,1736029843374,-1033.53,0.00019452,3]
[347659484,1736029843384,-487.09699117,0.00019452,3]
[347659485,1736029843394,-500.0,0.00019452,3]
[347659486,1736029843404,-503.40245848,0.00019452,3]
[347659487,1736029843414,-500.0,0.00019452,3]
[347659489,1736029843424,-500.0,0.00019452,3]
[347659490,1736029843433,-821.7,0.00019452,3]
[347659491,1736029843443,-500.0,0.00019452,3]
[347659492,1736029843452,-517.79701833,0.00019452,3]
[347659493,1736029843463,-500.0,0.00019452,3]
[347659494,1736029843472,-614.27,0.00019452,3]
[347659495,1736029843483,-500.0,0.00019452,3]
[347659496,1736029843492,-1038.84,0.00019452,3]
[347659497,1736029843502,-500.0,0.00019452,3]
[347659498,1736029843511,-543.87,0.00019452,3]
[347659499,1736029843522,-285.04567685,0.00019452,3]
[347659500,1736029843534,-599.8,0.00019452,3]
[347659501,1736029843545,-500.0,0.00019452,3]
[347659502,1736029843555,-544.62,0.00019452,3]
[347659503,1736029843568,-505.33,0.00019452,3]
[347659504,1736029843577,-729.49,0.00019452,3]
[347659505,1736029843588,-937.12,0.00019452,3]
[347659506,1736029843597,-500.0,0.00019452,3]
[347659507,1736029843610,-500.0,0.00019452,3]
[347659508,1736029843619,-589.36,0.00019452,3]
[347659509,1736029843629,-500.0,0.00019452,3]
[347659510,1736029843639,-500.0,0.00019452,3]
[347659511,1736029843649,-676.46,0.00019452,3]
[347659512,1736029843659,-1166.6,0.00019452,3]
[347659513,1736029843668,-500.0,0.00019452,3]
[347659514,1736029843679,-500.0,0.00019452,3]
[347659515,1736029843690,-500.0,0.00019452,3]
[347659516,1736029843702,-500.0,0.00019452,3]
[347659517,1736029843714,-518.44802163,0.00019452,3]
[347659518,1736029843724,-520.52888601,0.00019452,3]
[347659519,1736029843733,-500.0,0.00019452,3]
[347659520,1736029843742,-606.42,0.00019452,3]
[347659521,1736029843751,-500.0,0.00019452,3]
[347659522,1736029843762,-500.0,0.00019452,3]
[347659523,1736029843772,-500.0,0.00019452,3]
[347659524,1736029843781,-681.7,0.00019452,3]
[347659525,1736029843790,-500.0,0.00019452,3]
[347659526,1736029843800,-500.0,0.00019452,3]
[347659527,1736029843811,-500.0,0.00019452,3]
[347659528,1736029843822,-500.0,0.00019452,3]
[347659529,1736029843833,-500.0,0.00019452,3]
[347659530,1736029843842,-500.0,0.00019452,3]
[347659531,1736029843853,-500.0,0.00019452,3]
[347659532,1736029843862,-500.0,0.00019452,3]
[347659533,1736029843872,-500.0,0.00019452,3]
[347659534,1736029843883,-500.0,0.00019452,3]
[347659535,1736029843893,-500.0,0.00019452,3]
[347659536,1736029843902,-7054.93,0.00019452,3]
[347659537,1736029843911,-622.22454297,0.00019452,3]
[347659542,1736029924885,1024.0,0.00025,120]
[347659551,1736030542009,189.901965,0.00013973,2]
[347659552,1736030602678,-237.916241,0.00015627,2]
[347659553,1736030602704,-237.916241,0.00015785,2]
[347659554,1736030602727,-151.0,0.00016935,2]
[347659555,1736030602751,-151.0,0.00016935,2]
[347659556,1736030602781,-151.0,0.00016935,2]
[347659557,1736030602804,-394.0,0.00017809,2]
[347659558,1736030602826,-300.0,0.0001797,2]
[347659559,1736030602848,-14553.1841344,0.00017971,2]
[347659560,1736030602870,-393.964,0.000189,2]
[347659561,1736030602892,-2060.34647201,0.000189,2]
[347659562,1736030602916,-1696.70295942,0.000189,2]
[347659563,1736030602943,-150.95504008,0.00018938,2]
[347659564,1736030602965,-32637.23042333,0.00019,2]
[347659565,1736030602989,-302.8788636,0.00019,2]
[347659566,1736030603014,-2060.34647198,0.00019038,2]
[347659567,1736030603039,-933.97,0.000191,2]
[347659568,1736030603060,-377.0,0.000191,8]
[347659569,1736030603082,-500.0,0.00019173,2]
[347659570,1736030603105,-2060.34647198,0.00019176,2]
[347659571,1736030603127,-1000.0,0.00019177,35]
[347659572,1736030603149,-609.17685184,0.00019177,2]
[347659573,1736030603172,-562.49718884,0.00019177,2]
[347659574,1736030603194,-500.0,0.00019177,2]
[347659575,1736030603217,-500.0,0.00019177,2]
[347659576,1736030603243,-500.0,0.00019177,2]
[347659577,1736030603266,-500.0,0.00019177,2]
[347659578,1736030603289,-500.0,0.00019177,2]
[347659579,1736030603312,-500.0,0.00019177,2]
[347659580,1736030603335,-500.0,0.00019177,2]
[347659581,1736030603359,-500.0,0.00019177,2]
[347659582,1736030603382,-500.0,0.00019177,2]
[347659583,1736030603404,-500.0,0.00019177,2]
[347659584,1736030603427,-213.33270404,0.00019177,2]
[347659585,1736030603450,-500.0,0.00019177,2]
[347659586,1736030603472,-500.0,0.00019177,2]
[347659587,1736030603495,-500.0,0.00019177,2]
[347659588,1736030603518,-353.17187335,0.00019177,2]
[347659589,1736030603540,-264.27682623,0.00019177,2]
[347659590,1736030603561,-152.86144793,0.00019177,2]
[347659591,1736030603584,-611.09155483,0.00019177,2]
[347659592,1736030603606,-645.11,0.00019178,2]
[347659593,1736030603628,-500.0,0.00019178,2]
[347659594,1736030603650,-500.0,0.00019178,2]
[347659595,1736030603672,-500.0,0.00019178,2]
[347659596,1736030603694,-500.0,0.00019178,2]
[347659597,1736030603716,-504.24253105,0.00019178,2]
[347659598,1736030603738,-500.0,0.00019178,2]
[347659599,1736030603761,-461.46611614,0.00019178,2]
[347659600,1736030603783,-500.0,0.00019178,2]
[347659601,1736030603806,-500.0,0.00019178,2]
[347659602,1736030603829,-500.0,0.00019178,2]
[347659603,1736030603854,-500.0,0.00019178,2]
[347659604,1736030603877,-390.66437519,0.00019178,2]
[347659605,1736030603900,-555.88,0.00019178,2]
[347659606,1736030603922,-500.0,0.00019178,2]
[347659607,1736030603950,-500.0,0.00019178,2]
[347659608,1736030603974,-500.0,0.00019178,2]
[347659609,1736030603996,-624.89,0.00019178,2]
[347659610,1736030604022,-1069.38,0.00019178,2]
[347659611,1736030604046,-500.0,0.00019178,2]
[347659612,1736030604069,-500.0,0.00019178,2]
[347659613,1736030604093,-280.5,0.00019178,2]
[347659614,1736030604118,-500.0,0.00019178,2]
[347659615,1736030604140,-500.0,0.00019178,2]
[347659616,1736030604164,-500.0,0.00019178,2]
[347659617,1736030604186,-500.0,0.00019178,2]
[347659618,1736030604208,-500.0,0.00019178,2]
[347659619,1736030604232,-849.83,0.00019178,2]
[347659620,1736030604255,-500.0,0.00019178,2]
[347659621,1736030604279,-562.44,0.00019178,2]
[347659622,1736030604303,-500.0,0.00019178,2]
[347659623,1736030604327,-500.0,0.00019178,2]
[347659624,1736030604348,-483.37372886,0.00019178,2]
[347659625,1736030604371,-500.0,0.00019178,2]
[347659626,1736030604393,-500.0,0.00019178,2]
[347659627,1736030604415,-500.0,0.00019178,2]
[347659628,1736030604438,-500.0,0.00019178,2]
[347659629,1736030604460,-500.0,0.00019178,2]
[347659630,1736030604484,-500.0,0.00019178,2]
[347659631,1736030604508,-500.0,0.00019178,2]
[347659632,1736030604530,-500.0,0.00019178,2]
[347659633,1736030604554,-500.0,0.00019178,2]
[347659634,1736030604576,-500.0,0.00019178,2]
[347659635,1736030604599,-500.0,0.00019178,2]
[347659636,1736030604621,-500.0,0.00019178,2]
[347659637,1736030604644,-1448.7,0.00019178,2]
[347659638,1736030604667,-500.0,0.00019178,2]
[347659639,1736030604691,-500.0,0.00019178,2]
[347659640,1736030604714,-500.0,0.00019178,2]
[347659641,1736030604742,-500.0,0.00019178,2]
[347659642,1736030604765,-500.0,0.00019178,2]
[347659643,1736030604939,-500.0,0.00019178,2]
[347659644,1736030604966,-500.0,0.00019178,2]
[347659645,1736030604990,-500.0,0.00019178,2]
[347659646,1736030605014,-500.0,0.00019178,2]
[347659647,1736030605039,-500.0,0.00019178,2]
[347659648,1736030605063,-277.30043689,0.00019178,2]
[347659649,1736030605087,-230.05704601,0.00019178,2]
[347659705,1736031032140,-394.0,0.00017631,2]
[347659707,1736031032149,-101.205,0.00018108,2]
[347659710,1736031032169,-136.711241,0.00018108,2]
[347659712,1736031032179,-707.713759,0.000189,2]
[347659715,1736031032200,-423.42154728,0.000189,2]
[347659717,1736031032209,-302.90913937,0.00019,2]
[347659719,1736031032219,-414.66932135,0.000191,2]
[347660083,1736031441469,200.406867,0.00013973,2]
[347660131,1736032232697,-394.0,0.00015945,2]
[347660134,1736032232707,-394.0,0.00016106,2]
[347660136,1736032232721,-394.0,0.00017809,2]
[347660138,1736032232730,-150.95504006,0.00017835,2]
[347660140,1736032232740,-300.0,0.00017934,2]
[347660142,1736032232749,-245.925856,0.00017934,2]
[347660144,1736032232758,-500.0,0.00017934,2]
[347660146,1736032232768,-164.6689073,0.00017934,2]
[347660148,1736032232778,-500.0,0.00017934,2]
[347660150,1736032232787,-9852.66777757,0.00017935,2]
[347660153,1736032232798,-1859.99143153,0.00017935,2]
[347660249,1736032238423,-2495.86715614,0.00017935,2]
[347660251,1736032238433,-106937.49334661,0.00017935,2]
[347660253,1736032238443,-12268.3171886,0.00017935,2]
[347660256,1736032238454,-431.262,0.0001848,2]
[347660257,1736032238465,-754.09020419,0.000189,2]
[347660259,1736032238475,-302.8788636,0.00019,2]
[347660261,1736032238484,-799.1,0.000191,2]
[347660263,1736032238494,-358.0,0.000191,8]
[347660265,1736032238504,-500.0,0.00019173,2]
[347660267,1736032238514,-315.172,0.00019177,2]
[347660269,1736032238524,-256.13575922,0.00019177,5]
[347660271,1736032238549,-243.86424078,0.00019177,5]
[347660273,1736032238559,-184.99377836,0.00019177,2]
[347660275,1736032238571,-427.76408838,0.00019177,2]
[347660277,1736032238580,-122.13184523,0.00019178,2]
[347660278,1736032238593,-377.86815477,0.00019178,2]
[347660279,1736032238602,-500.0,0.00019178,2]
[347660280,1736032238612,-500.0,0.00019178,2]
[347660281,1736032238622,-500.0,0.00019178,2]
[347660282,1736032238632,-259.35630723,0.00019178,2]
[347660283,1736032238645,-240.64369277,0.00019178,2]
[347660284,1736032238655,-165.21378729,0.00019178,2]
[347660334,1736032243391,-171.09379778,0.00017755,2]
[347660335,1736032243401,-334.78621271,0.00019178,2]
[347660336,1736032243411,-500.0,0.00019178,2]
[347660337,1736032243421,-500.0,0.00019178,2]
[347660338,1736032243430,-521.44603836,0.00019178,2]
[347660339,1736032243439,-500.0,0.00019178,2]
[347660340,1736032243449,-500.0,0.00019178,2]
[347660341,1736032243458,-500.0,0.00019178,2]
[347660342,1736032243468,-500.0,0.00019178,2]
[347660343,1736032243477,-500.0,0.00019178,2]
[347660344,1736032243487,-622.39,0.00019178,2]
[347660345,1736032243496,-500.0,0.00019178,2]
[347660346,1736032243505,-500.0,0.00019178,2]
[347660347,1736032243514,-500.0,0.00019178,2]
[347660348,1736032243523,-500.0,0.00019178,2]
[347660349,1736032243533,-500.0,0.00019178,2]
[347660350,1736032243542,-500.0,0.00019178,2]
[347660351,1736032243551,-521.37724118,0.00019178,2]
[347660352,1736032243561,-500.0,0.00019178,2]
[347660353,1736032243570,-500.0,0.00019178,2]
[347660354,1736032243579,-500.0,0.00019178,2]
[347660355,1736032243588,-500.0,0.00019178,2]
[347660356,1736032243598,-500.0,0.00019178,2]
[347660357,1736032243607,-2699.26,0.00019178,2]
[347660358,1736032243617,-667.67,0.00019178,2]
[347660359,1736032243627,-649.61,0.00019178,2]
[347660360,1736032243636,-386.10001,0.00019178,2]
[347660361,1736032243646,-500.0,0.00019178,2]
[347660362,1736032243655,-484.60424409,0.00019178,2]
[347660363,1736032243665,-500.0,0.00019178,2]
[347660364,1736032243675,-675.24,0.00019178,2]
[347660365,1736032243684,-500.0,0.00019178,2]
[347660366,1736032243694,-151.0,0.00019178,2]
[347660367,1736032243703,-710.27,0.00019178,2]
[347660368,1736032243715,-500.0,0.00019178,2]
[347660369,1736032243728,-500.0,0.00019178,2]
[347660370,1736032243738,-500.0,0.00019178,2]
[347660371,1736032243748,-500.0,0.00019178,2]
[347660372,1736032243757,-500.0,0.00019178,2]
[347660373,1736032243767,-500.0,0.00019178,2]
[347660374,1736032243776,-500.0,0.00019178,2]
[347660375,1736032243786,-730.42,0.00019178,2]
[347660376,1736032243798,-500.0,0.00019178,2]
[347660377,1736032243808,-200.0,0.00019178,2]
[347660378,1736032243817,-561.36,0.00019178,2]
[347660379,1736032243826,-500.0,0.00019178,2]
[347660380,1736032243836,-500.0,0.00019178,2]
[347660381,1736032243845,-500.0,0.00019178,2]
[347660382,1736032243855,-500.0,0.00019178,2]
[347660383,1736032243865,-361.33712646,0.00019178,2]
[347660384,1736032243875,-500.0,0.00019178,2]
[347660385,1736032243884,-500.0,0.00019178,2]
[347660386,1736032243894,-1043.7,0.00019178,2]
[347660387,1736032243905,-500.0,0.00019178,2]
[347660388,1736032243914,-500.0,0.00019178,2]
[347660389,1736032243924,-500.0,0.00019178,2]
[347660390,1736032243933,-500.0,0.00019178,2]
[347660392,1736032243942,-500.0,0.00019178,2]
[347660393,1736032243952,-815.1,0.00019178,2]
[347660394,1736032243962,-500.0,0.00019178,2]
[347660395,1736032243974,-500.0,0.00019178,2]
[347660396,1736032243983,-522.27,0.00019178,2]
[347660397,1736032243993,-500.0,0.00019178,2]
[347660398,1736032244002,-590.9,0.00019178,2]
[347660399,1736032244012,-616.87,0.00019178,2]
[347660400,1736032244021,-500.0,0.00019178,2]
[347660401,1736032244031,-500.0,0.00019178,2]
[347660402,1736032244040,-1027.9,0.00019178,2]
[347660403,1736032244051,-520.11,0.00019178,2]
[347660404,1736032244060,-528.12,0.00019178,2]
[347660405,1736032244069,-500.0,0.00019178,2]
[347660406,1736032244079,-500.0,0.00019178,2]
[347660407,1736032244089,-500.0,0.00019178,2]
[347660408,1736032244099,-500.0,0.00019178,2]
[347660409,1736032244108,-932.85,0.00019178,2]
[347660410,1736032244119,-500.0,0.00019178,2]
[347660411,1736032244128,-500.0,0.00019178,2]
[347660412,1736032244139,-500.0,0.00019178,2]
[347660413,1736032244148,-697.15,0.00019178,2]
[347660414,1736032244157,-500.0,0.00019178,2]
[347660415,1736032244166,-596.39,0.00019178,2]
[347660416,1736032244176,-500.0,0.00019178,2]
[347660417,1736032244186,-500.0,0.00019178,2]
[347660418,1736032244197,-203.04848889,0.00019178,2]
[347660419,1736032244207,-1065.91,0.00019178,2]
[347660420,1736032244216,-500.0,0.00019178,2]
[347660421,1736032244226,-500.0,0.00019178,2]
[347660422,1736032244237,-500.0,0.00019178,2]
[347660423,1736032244247,-632.14,0.00019178,2]
[347660424,1736032244258,-776.86,0.00019178,2]
[347660425,1736032244268,-500.0,0.00019178,2]
[347660426,1736032244277,-500.0,0.00019178,2]
[347660427,1736032244287,-500.0,0.00019178,2]
[347660428,1736032244296,-597.22,0.00019178,2]
[347660429,1736032244305,-500.0,0.00019178,2]
[347660430,1736032244314,-500.0,0.00019178,2]
[347660431,1736032244324,-25.56741809,0.00019178,2]
[347660432,1736032244338,-474.43258191,0.00019178,2]
[347660433,1736032244348,-500.0,0.00019178,2]
[347660434,1736032244358,-500.0,0.00019178,2]
[347660435,1736032244369,-500.0,0.00019178,2]
[347660436,1736032244379,-493.52741809,0.00019178,2]
[347660464,1736032246310,-6.47258191,0.00019178,2]
[347660465,1736032246320,-787.38216915,0.00019178,2]
[347660466,1736032246332,-398.00783085,0.00019178,2]
[347660467,1736032246342,-500.0,0.00019178,2]
[347660468,1736032246351,-565.65,0.00019178,2]
[347660470,1736032246360,-500.0,0.00019178,2]
[347660471,1736032246369,-500.0,0.00019178,2]
[347660472,1736032246378,-500.0,0.00019178,2]
[347660473,1736032246388,-500.0,0.00019178,2]
[347660474,1736032246397,-1383.41,0.00019178,2]
[347660475,1736032246407,-901.88,0.00019178,2]
[347660476,1736032246416,-160.99513719,0.00019178,2]
[347660478,1736032352709,210.386523,0.00013973,2]
[347660490,1736033351634,219.867197,0.00013973,2]
[347660491,1736033355125,-206.31002333,0.00017455,2]
[347660492,1736033407094,5000.0,0.00025,120]
[347660493,1736033416169,5000.0,0.00025,120]
[347660494,1736033423567,5000.0,0.00025,120]
[347660495,1736033431286,5000.0,0.00025,120]
[347660564,1736033432809,-312.134,0.00017631,2]
[347660566,1736033432820,-300.0,0.00018026,2]
[347660568,1736033432829,-4872.93478111,0.00018027,2]
[347660570,1736033432841,-6075.44707755,0.00018027,2]
[347660634,1736033438325,-4973.65935953,0.00018027,2]
[347660635,1736033438338,-2061.14684939,0.00018027,2]
[347660636,1736033438457,-1300.47226199,0.00018027,2]
[347660637,1736033438470,-5616.33967043,0.00018027,2]
[347660638,1736033438479,-262.3219926,0.00018214,2]
[347660639,1736033438488,-443.966,0.0001848,2]
[347660641,1736033438498,-502.72680279,0.000189,2]
[347660643,1736033438507,-214.5513576,0.000189,2]
[347660645,1736033438516,-705.3495124,0.000189,2]
[347660646,1736033438526,-307.2275106,0.000189,2]
[347660647,1736033438535,-306.0,0.000189,2]
[347660648,1736033438544,-214.5513576,0.000189,2]
[347660649,1736033438554,-214.3307859,0.000189,2]
[347660651,1736033438563,-211.70658712,0.000189,2]
[347660653,1736033438572,-10794.74591837,0.00018935,2]
[347660655,1736033438582,-301.2759102,0.00019,2]
[347660657,1736033438591,-302.8788636,0.00019,2]
[347660659,1736033438601,-209.54025669,0.00019077,2]
[347660661,1736033438610,-719.19,0.000191,2]
[347660662,1736033438619,-153.46,0.000191,2]
[347660663,1736033438628,-500.0,0.00019173,2]
[347660664,1736033438638,-252.137,0.00019173,2]
[347660665,1736033438647,-500.0,0.00019177,2]
[347660666,1736033438661,-500.0,0.00019177,2]
[347660667,1736033438670,-500.0,0.00019177,2]
[347660668,1736033438679,-500.0,0.00019177,2]
[347660669,1736033438688,-500.0,0.00019177,2]
[347660670,1736033438698,-500.0,0.00019177,2]
[347660671,1736033438707,-200.69159421,0.00019177,2]
[347660672,1736033438716,-500.0,0.00019177,2]
[347660673,1736033438725,-500.0,0.00019177,2]
[347660674,1736033438734,-500.0,0.00019177,2]
[347660675,1736033438744,-627.55542136,0.00019177,2]
[347660676,1736033438753,-300.0,0.00019177,2]
[347660677,1736033438762,-500.0,0.00019177,2]
[347660678,1736033438772,-500.0,0.00019177,2]
[347660679,1736033438781,-500.0,0.00019177,2]
[347660680,1736033438790,-500.0,0.00019177,2]
[347660681,1736033438799,-500.0,0.00019177,2]
[347660682,1736033438809,-286.16688706,0.00019177,2]
[347660683,1736033439272,-213.83311294,0.00019177,2]
[347660684,1736033439282,-26.57581747,0.00019177,2]
[347660685,1736033439298,-473.42418253,0.00019177,2]
[347660686,1736033439308,-500.0,0.00019177,2]
[347660687,1736033439318,-500.0,0.00019177,2]
[347660688,1736033439328,-102.78649621,0.00019177,2]
[347660689,1736033439341,-397.21350379,0.00019177,2]
[347660690,1736033439350,-500.0,0.00019177,2]
[347660691,1736033439362,-500.0,0.00019177,2]
[347660692,1736033439372,-500.0,0.00019177,2]
[347660693,1736033439382,-500.0,0.00019177,2]
[347660694,1736033439391,-500.0,0.00019177,2]
[347660695,1736033439401,-500.0,0.00019177,2]
[347660696,1736033439412,-500.0,0.00019177,2]
[347660697,1736033439422,-500.0,0.00019177,2]
[347660698,1736033439431,-650.0,0.00019177,2]
[347660699,1736033439442,-500.0,0.00019177,2]
[347660700,1736033439451,-600.0,0.00019177,2]
[347660701,1736033439461,-500.0,0.00019177,2]
[347660702,1736033439471,-382.66626409,0.00019177,2]
[347660703,1736033439481,-500.0,0.00019177,2]
[347660704,1736033439492,-500.0,0.00019177,2]
[347660705,1736033439502,-500.0,0.00019177,2]
[347660706,1736033439512,-500.0,0.00019177,2]
[347660707,1736033439523,-500.0,0.00019177,2]
[347660708,1736033439533,-500.0,0.00019177,2]
[347660709,1736033439542,-500.0,0.00019177,2]
[347660710,1736033439551,-500.0,0.00019177,2]
[347660711,1736033439560,-500.0,0.00019177,2]
[347660712,1736033439569,-500.0,0.00019177,2]
[347660713,1736033439579,-500.0,0.00019177,2]
[347660714,1736033439589,-500.0,0.00019177,2]
[347660715,1736033439597,-500.0,0.00019177,2]
[347660716,1736033439607,-500.0,0.00019177,2]
[347660717,1736033439616,-500.0,0.00019177,2]
[347660718,1736033439625,-500.0,0.00019177,2]
[347660719,1736033439634,-500.0,0.00019177,2]
[347660720,1736033439643,-500.0,0.00019177,2]
[347660721,1736033439653,-500.0,0.00019177,2]
[347660722,1736033439666,-500.0,0.00019177,2]
[347660723,1736033439675,-500.0,0.00019177,2]
[347660724,1736033439685,-500.0,0.00019177,2]
[347660725,1736033439694,-500.0,0.00019177,2]
[347660726,1736033439704,-73.92460638,0.00019177,2]
[347660727,1736033439764,5000.0,0.00025,120]
[347660741,1736033440738,-426.07539362,0.00019177,2]
[347660742,1736033440748,-500.0,0.00019177,2]
[347660743,1736033440757,-370.15124888,0.00019177,2]
[347660744,1736033440768,-129.84875112,0.00019177,2]
[347660745,1736033440778,-500.0,0.00019177,2]
[347660746,1736033440787,-237.21078081,0.00019177,2]
[347660747,1736033440799,-262.78921919,0.00019177,2]
[347660748,1736033440808,-250.0,0.00019177,2]
[347660749,1736033440817,-500.0,0.00019177,2]
[347660750,1736033440827,-31.61078081,0.00019177,2]
[347660751,1736033440838,-334.98124228,0.00019177,2]
[347660752,1736033440849,-133.40797691,0.00019177,2]
[347660753,1736033440858,-500.0,0.00019177,2]
[347660754,1736033440868,-500.0,0.00019177,2]
[347660755,1736033440877,-500.0,0.00019177,2]
[347660756,1736033440887,-500.0,0.00019177,2]
[347660757,1736033440896,-500.0,0.00019177,2]
[347660758,1736033440905,-500.0,0.00019177,2]
[347660759,1736033440915,-500.0,0.00019177,2]
[347660760,1736033440924,-500.0,0.00019177,2]
[347660761,1736033440933,-500.0,0.00019177,2]
[347660762,1736033440943,-500.0,0.00019177,2]
[347660763,1736033440953,-500.0,0.00019177,2]
[347660764,1736033440963,-500.0,0.00019177,2]
[347660765,1736033440972,-500.0,0.00019177,2]
[347660766,1736033440982,-500.0,0.00019177,2]
[347660767,1736033440993,-500.0,0.00019177,2]
[347660768,1736033441004,-500.0,0.00019177,2]
[347660769,1736033441015,-500.0,0.00019177,2]
[347660770,1736033441024,-500.0,0.00019177,2]
[347660771,1736033441034,-500.0,0.00019177,2]
[347660772,1736033441046,-500.0,0.00019177,2]
[347660773,1736033441056,-500.0,0.00019177,2]
[347660774,1736033441066,-500.0,0.00019177,2]
[347660775,1736033441076,-500.0,0.00019177,2]
[347660776,1736033441086,-500.0,0.00019177,2]
[347660777,1736033441096,-500.0,0.00019177,2]
[347660778,1736033441105,-456.66566022,0.00019177,2]
[347660779,1736033441115,-500.0,0.00019177,2]
[347660780,1736033441124,-500.0,0.00019177,2]
[347660781,1736033441135,-500.0,0.00019177,2]
[347660782,1736033441145,-500.0,0.00019177,2]
[347660783,1736033441155,-200.0,0.00019177,2]
[347660784,1736033441165,-500.0,0.00019177,2]
[347660785,1736033441175,-351.7648135,0.00019177,2]
[347660786,1736033441185,-500.0,0.00019177,2]
[347660787,1736033441195,-500.0,0.00019177,2]
[347660788,1736033441204,-500.0,0.00019177,2]
[347660789,1736033441213,-500.0,0.00019177,2]
[347660790,1736033441223,-500.0,0.00019177,2]
[347660791,1736033441232,-500.0,0.00019177,2]
[347660792,1736033441242,-500.0,0.00019177,2]
[347660793,1736033441252,-500.0,0.00019177,2]
[347660794,1736033441264,-500.0,0.00019177,2]
[347660795,1736033441273,-500.0,0.00019177,2]
[347660796,1736033441282,-500.0,0.00019177,2]
[347660797,1736033441292,-500.0,0.00019177,2]
[347660798,1736033441301,-500.0,0.00019177,2]
[347660799,1736033441310,-500.0,0.00019177,2]
[347660800,1736033441319,-500.0,0.00019177,2]
[347660801,1736033441328,-500.0,0.00019177,2]
[347660802,1736033441338,-500.0,0.00019177,2]
[347660803,1736033441349,-500.0,0.00019177,2]
[347660804,1736033441358,-500.0,0.00019177,2]
[347660805,1736033441368,-500.0,0.00019177,2]
[347660806,1736033441378,-500.0,0.00019177,2]
[347660807,1736033441387,-500.0,0.00019177,2]
[347660808,1736033441396,-500.0,0.00019177,2]
[347660809,1736033441406,-500.0,0.00019177,2]
[347660810,1736033441416,-500.0,0.00019177,2]
[347660811,1736033441426,-500.0,0.00019177,2]
[347660812,1736033441435,-500.0,0.00019177,2]
[347660813,1736033441445,-500.0,0.00019177,2]
[347660814,1736033441455,-651.55481748,0.00019177,2]
[347660815,1736033441465,-500.0,0.00019177,2]
[347660816,1736033441475,-500.0,0.00019177,2]
[347660817,1736033441484,-500.0,0.00019177,2]
[347660818,1736033441493,-500.0,0.00019177,2]
[347660819,1736033441506,-164.6689073,0.00019177,2]
[347660820,1736033441515,-299.43486186,0.00019177,2]
[347660821,1736033441525,-10593.72236958,0.00019178,2]
[347660822,1736033441534,-39449.05159351,0.00019178,2]
[347660823,1736033441547,-22830.0,0.00019178,2]
[347660824,1736033441559,-1107.13640295,0.00019178,2]
[347660825,1736033441575,-4997.5600244,0.00019178,2]
[347660826,1736033441588,-4754.77714989,0.00019178,2]
[347660827,1736033441599,-1784.70151115,0.00019178,2]
[347660828,1736033441608,-72.09068931,0.00019178,2]
[347660829,1736033441620,-79.68044869,0.00019178,2]
[347660830,1736033441631,-377.81955131,0.00019178,2]
[347660844,1736033443638,-122.18044869,0.00019178,2]
[347660845,1736033443648,-500.0,0.00019178,2]
[347660846,1736033443658,-500.0,0.00019178,2]